Cogmind - Beta 11.1 @@@ ROGUE MODE // 2022.05.09 @ 04:56:50 Player: AnthonyDPS 2004 Result: Self-destructed Performance ------------- Evolutions (1) 500 Regions Visited (3) 600 Robots Destroyed (22) 110 Value Destroyed (183) 183 Prototype IDs (0) 0 Alien Tech Used (0) 0 Bonus (60) 60 TOTAL SCORE: 1453 Bonus ------- Follower Combat Kills 60 Cogmind --------- Core Integrity 364/400 Matter 150/300 Energy 100/100 System Corruption 0% Temperature Cool (36) Movement Rolling (80) Location -9/Materials Parts ------- > --- POWER (1) -------- (None) > --- PROPULSION (3) --- Wheel Wheel Wheel > --- UTILITY (3) ------ Small Storage Unit Improved Terrain Scanner > --- WEAPON (2) ------- Grenade Launcher > --- INVENTORY (8) ---- Light Ion Engine Aluminum Leg Medium Matter Pod (96) Weight Redist. System Peak State ------------ > --- POWER ------------ Light Ion Engine > --- PROPULSION ------- Wheel Wheel Wheel > --- UTILITY ---------- Small Storage Unit Sensor Array Improved Terrain Scanner > --- WEAPON ----------- Medium Laser Grenade Launcher > --- INVENTORY -------- Light Ion Engine Aluminum Leg Medium Matter Pod Mining Laser [Rating: 11] Favorites ----------- Power Light Ion Engine Engine Light Ion Engine Propulsion Wheel Wheel Wheel Utility Small Storage Unit Device Improved Terrain Scanner Storage Small Storage Unit Weapon Small Laser Energy Gun Small Laser Launcher Grenade Launcher Special Weapon Mining Laser Build | -11 -10 -10 -9 ------- Run | Scr Mat Min Mat Slots Evolved 2 | . . . 2 Power . | . . . . Propulsion 1 | . . . 1 Utility 1 | . . . 1 Weapon . | . . . . Parts Attached 26 | 11 2 9 4 Power 5 | 3 . 2 . Engine 5 | 3 . 2 . Core . | . . . . Reactor . | . . . . Propulsion 5 | 2 . 2 1 Treads . | . . . . Leg . | . . . . Wheel 5 | 2 . 2 1 Hover . | . . . . Flight . | . . . . Utility 9 | 4 1 3 1 Device 8 | 3 1 3 1 Storage 1 | 1 . . . Processor . | . . . . Hackware . | . . . . Protection . | . . . . Artifact . | . . . . Weapon 7 | 2 1 2 2 Energy Gun 4 | 2 1 . 1 Energy Cannon . | . . . . Ballistic Gun . | . . . . Ballistic Cannon . | . . . . Launcher 1 | . . 1 . Special Weapon 2 | . . 1 1 Impact Weapon . | . . . . Slashing Weapon . | . . . . Piercing Weapon . | . . . . Special Melee Weapon . | . . . . Unidentified Prototypes . | . . . . Parts Lost 6 | . 2 . 4 Power 2 | . 1 . 1 Propulsion 1 | . 1 . . Utility 1 | . . . 1 Weapon 2 | . . . 2 Highest Loss Streak 4 | . 2 . 4 To Critical Strikes . | . . . . Average Slot Usage (%) 98 | . 87 99 99 Engine 12 | . 11 14 11 Wheel 29 | . 25 28 33 Device 15 | . 10 13 21 Storage 13 | . 14 14 11 Energy Gun 15 | . 24 20 2 Launcher 5 | . . 4 11 Special Weapon 4 | . . 3 8 Naked Turns . | . . . . Heaviest Build 15 | 13 11 15 15 Greatest Support 30 | 20 20 20 30 Greatest Overweight (x) 3 | 3 . . . Average Overweight (x) . | . . . . Largest Inventory Capacity 8 | 8 8 8 8 Average Capacity 7 | 7 8 8 8 Most Carried 8 | 8 8 8 5 Average Carried 5 | 6 7 5 4 Final Capacity 8 | 8 8 8 8 Final Carried 8 | 8 8 6 4 Class Distribution -------------------- 79% | Mutant 20% | Scavenger-Mutant Dominant Class ---------------- Mutant | -10/Materials Mutant | -10/Mines Scavenger-Mutant | -9/Materials Resources | -11 -10 -10 -9 ----------- Run | Scr Mat Min Mat Matter Collected 485 | 313 66 106 . Remotely . | . . . . Salvage Created 335 | 213 48 48 26 Parts 30 | 13 4 6 7 Haulers Intercepted . | . . . . Recyclers Shooed . | . . . . Parts Field Recycled . | . . . . Retrieved Matter . | . . . . Parts Self-Destructed . | . . . . Prevented . | . . . . Kills | -11 -10 -10 -9 ------- Run | Scr Mat Min Mat Combat Hostiles Destroyed 12 | . 3 6 3 Guns 4 | . 3 1 . AOE 8 | . . 5 3 Classes Destroyed 5 | 3 1 . 1 Worker 4 | 2 . 1 1 Builder 1 | . . . 1 Tunneler 4 | 4 . . . Recycler 1 | 1 . . . Swarmer 12 | . 3 6 3 Best Kill Streak 5 | 3 3 4 5 Combat Bots Only 3 | . 3 3 3 Max Kills in Single Turn 2 | 2 1 2 2 Gunslinging . | . . . . Exploded 2 | . . 2 1 Melee . | . . . . Uniques/NPCs Destroyed . | . . . . Combat | -11 -10 -10 -9 -------- Run | Scr Mat Min Mat Damage Taken 732 | . 343 158 231 Core 207 | . 116 55 36 Absorbed by Shields . | . . . . Core Remaining (%) 65 | 100 . 31 . Volleys Fired 39 | 13 6 6 14 Largest 2 | 2 2 1 1 Hottest 100 | 80 90 50 100 Shots Fired 58 | 26 12 6 14 Gun 42 | 26 12 1 3 Cannon . | . . . . Launcher 10 | . . 5 5 Special 6 | . . . 6 Kinetic . | . . . . Thermal 48 | 26 12 1 9 Explosive 10 | . . 5 5 Electromagnetic . | . . . . Robot Hit Streak 9 | 8 9 1 1 Robot Miss Streak 3 | 3 1 2 2 Penetration Max . | . . . . Secondary Targets 2 | . 2 . . Max Gunslinging Chain 1 | . 1 . . Shots Hit Robots 27 | 17 7 2 1 Core Hits 30 | 8 4 10 8 Critical Kills . | . . . . Critical Parts Destroyed . | . . . . Critical Strikes 2 | . 1 . 1 Burn 2 | . 1 . 1 Melee Attacks . | . . . . Impact . | . . . . Slashing . | . . . . Piercing . | . . . . Sneak Attacks . | . . . . Combat Hostiles . | . . . . Follow-up Attacks . | . . . . Damage Inflicted 913 | 197 82 285 349 Guns 304 | 197 82 13 12 Cannons . | . . . . Explosions 609 | . . 272 337 Melee . | . . . . Ramming . | . . . . Kinetic . | . . . . Thermal 304 | 197 82 13 12 Explosive 609 | . . 272 337 Electromagnetic . | . . . . Impact . | . . . . Slashing . | . . . . Piercing . | . . . . Highest Corruption . | . . . . Average Corruption . | . . . . Corruption Purged . | . . . . Corruption Blocked . | . . . . Overload Shots . | . . . . Overflow Damage 30 | . . 28 2 Projectiles . | . . . . Explosions 30 | . . 28 2 Melee . | . . . . Knockbacks . | . . . . Impact . | . . . . Kinetic . | . . . . Secondary . | . . . . Self-Inflicted Damage 61 | . . 33 28 Shots 3 | . . 1 2 Rammed . | . . . . Targets Rammed . | . . . . Kicked . | . . . . Crushed . | . . . . Highest Temperature 155 | 72 155 10 30 Average Temperature 32 | 26 70 7 9 Received Heat Transfer 195 | . 129 . 66 Siege Activations . | . . . . Robots Corrupted . | . . . . Combat Hostiles . | . . . . Parts Fried . | . . . . Impact Corruptions . | . . . . Robots Melted . | . . . . Combat Hostiles . | . . . . Parts Melted 2 | 1 1 . . Heat Transferred 883 | 450 285 37 111 Parts Sabotaged . | . . . . Parts Stolen . | . . . . Parts Stripped . | . . . . Power Chain Reactions . | . . . . Missiles Intercepted . | . . . . Alert | -11 -10 -10 -9 ------- Run | Scr Mat Min Mat Peak Influence 268 | 35 102 268 264 Initial 104 | . 22 39 104 Average 73 | 17 48 80 115 Maximum Alert Level 1 | . . 1 1 Low Security (%) 98 | 100 100 98 95 Level 1 1 | . . 1 4 Level 2 . | . . . . Level 3 . | . . . . Level 4 . | . . . . Level 5 . | . . . . High Security . | . . . . Max Security . | . . . . Squads Dispatched 5 | . 1 . 4 Investigation 1 | . . . 1 Extermination . | . . . . Reinforcement 4 | . 1 . 3 Assault . | . . . . Garrison . | . . . . Intercept . | . . . . Searches Triggered . | . . . . Construction Impeded . | . . . . Haulers Reinforced . | . . . . Active Scanning Responses . | . . . . Cargo Convoy Interrupts . | . . . . Stealth | -11 -10 -10 -9 --------- Run | Scr Mat Min Mat Distress Signals 2 | . 1 . 1 Communications Jammed . | . . . . Distress Signals . | . . . . Times Spotted 25 | . 10 6 9 Peak Tracking Total 8 | . 8 3 6 Tactical Retreats 2 | . 1 1 . Traps | -11 -10 -10 -9 ------- Run | Scr Mat Min Mat Traps Triggered 1 | . 1 . . Indirectly . | . . . . Trap Hack Attempts . | . . . . Triggered . | . . . . Disarmed . | . . . . Reprogrammed . | . . . . Reused . | . . . . Traps Extracted . | . . . . Installed . | . . . . Triggered . | . . . . Machines | -11 -10 -10 -9 ---------- Run | Scr Mat Min Mat Machines Disabled 2 | . . . 2 Max in Single Turn 1 | . . . 1 Machines Sabotaged . | . . . . Garrisons Compromised . | . . . . Overloaded Fab Kills . | . . . . Hacking | -11 -10 -10 -9 --------- Run | Scr Mat Min Mat Machines Accessed . | . . . . Terminals . | . . . . Fabricators . | . . . . Repair Stations . | . . . . Recycling Units . | . . . . Scanalyzers . | . . . . Garrison Access . | . . . . Total Hacks . | . . . . Successful . | . . . . Failed . | . . . . Catastrophic . | . . . . Database Lockouts . | . . . . Manual . | . . . . Terminals . | . . . . Fabricators . | . . . . Repair Stations . | . . . . Recycling Units . | . . . . Scanalyzers . | . . . . Garrison Access . | . . . . Terminal Hacks . | . . . . Fabricator Hacks . | . . . . Repair Station Hacks . | . . . . Recycling Unit Hacks . | . . . . Scanalyzer . | . . . . Garrison Access Hacks . | . . . . Unauthorized Hacks . | . . . . Terminals . | . . . . Fabricators . | . . . . Repair Stations . | . . . . Recycling Units . | . . . . Scanalyzers . | . . . . Garrison Access . | . . . . Data Cores Recovered . | . . . . Used . | . . . . Hacking Detections . | . . . . Full Trace Events . | . . . . Feedback Events . | . . . . Feedback Blocked . | . . . . Robot Schematics Acquired . | . . . . Robots Built . | . . . . Authchips . | . . . . Time . | . . . . Total Robot Build Rating . | . . . . Part Schematics Acquired . | . . . . Parts Built . | . . . . Authchips . | . . . . Time . | . . . . Total Part Build Rating . | . . . . Parts Repaired . | . . . . Time . | . . . . Parts Recycled . | . . . . Recycled Matter . | . . . . Retrieved Matter . | . . . . Retrieved Components . | . . . . Parts Scanalyzed . | . . . . Part Schematics Acquired . | . . . . Parts Damaged . | . . . . Bothacking | -11 -10 -10 -9 ------------ Run | Scr Mat Min Mat Used RIF Installer . | . . . . Robots Hacked . | . . . . Non-combat . | . . . . Combat . | . . . . Robot Hacks Applied . | . . . . Relay Couplers Released . | . . . . Fabnet Peak Effective % . | . . . . Robots Rewired . | . . . . Allies Hacked . | . . . . Hacks Repelled . | . . . . Allies | -11 -10 -10 -9 -------- Run | Scr Mat Min Mat Total Allies 1 | . . 1 . Largest Group 1 | . . 1 . Highest-Rated Group 31 | . . 31 . Highest-Rated Ally 31 | . . 31 . Total Orders . | . . . . Ally Attacks 8 | . . 8 . Total Damage 105 | . . 105 . Kills 2 | . . 2 . Allies Corrupted . | . . . . Allies Melted . | . . . . Intel | -11 -10 -10 -9 ------- Run | Scr Mat Min Mat Robot Analysis Total . | . . . . Derelict Logs Recovered 1 | . . 1 . Drone Launches . | . . . . Drone Recoveries . | . . . . Exploration | -11 -10 -10 -9 ------------- Run | Scr Mat Min Mat Turns Passed 1532 | 297 113 796 326 Spaces Moved 859 | 228 108 419 104 Core 46 | 46 . . . Treads . | . . . . Legs . | . . . . Wheels 813 | 182 108 419 104 Hover . | . . . . Flight . | . . . . Fastest Speed 50 | 50 80 80 80 Average Speed 84 | 98 80 80 80 Slowest Speed 200 | 200 80 80 80 Overloaded Moves . | . . . . Propulsion Burnouts . | . . . . Robots Hopped . | . . . . Cave-ins Triggered . | . . . . Exploration Rate (%) 29 | 8 32 72 7 Regions Visited 3 Branch Regions 1 Pre-discovered Areas . | . . . . Known Exits Taken . | . . . . Unknown Exits Taken 3 | 1 1 1 . Scrap Searched 1 | . . 1 . Spaces Dug 12 | . . . 12 Terrain Destroyed 61 | . . 42 19 Melee . | . . . . Projectile 6 | . . . 6 AOE 55 | . . 42 13 Terrain Rammed . | . . . . Walls Destroyed . | . . . . Machines Disabled . | . . . . Actions | -11 -10 -10 -9 --------- Run | Scr Mat Min Mat Total 1593 | 277 124 872 320 Wait 638 | 4 2 435 197 Move 856 | 227 107 418 104 Hop . | . . . . Pick Up 19 | 14 3 1 1 Fast Attach 10 | 8 . 2 . Attach 10 | 2 1 4 3 Detach 3 | 1 1 1 . Swap 6 | 1 1 3 1 Drop 12 | 7 3 2 . Fire 39 | 13 6 6 14 Melee . | . . . . Ram . | . . . . Kick . | . . . . Crush . | . . . . Escape Stasis . | . . . . Rewire . | . . . . Trap . | . . . . Miscellaneous . | . . . . Route ------- -11/Scrapyard -10/Materials -10/Mines -9/Materials History --------- Turn | Location | Event 7 | -11/Scrapyard | Discovered new exit (range 16) 298 | -11/Scrapyard | Entered Materials 318 | -10/Materials | Build established: Mutant 377 | -10/Materials | Discovered new exit (range 14) 411 | -10/Materials | Entered Mines 414 | -10/Mines | Received a Mining Laser from a helpful Derelict 925 | -10/Mines | Core integrity fell below 50% 974 | -10/Mines | Learned Materials terminal intel 1196 | -10/Mines | Discovered new exit (range 6) 1207 | -10/Mines | Entered Materials 1207 | -9/Materials | Evolved 2 slots: Propulsion x1, Utility x1 1208 | -9/Materials | Loaded intel: 12 terminal locations 1509 | -9/Materials | Build established: Scavenger-Mutant 1533 | -9/Materials | Self-destructed Last Messages --------------- 01242_ ALERT: Hostiles spotted, dispatching reinforcements to Terminal M005. 01433_ U-05 Engineer builds a Wall. 01513_ ALERT: Hostiles spotted, dispatching reinforcements to Terminal M011. 01515_ U-05 Engineer builds a Wall. 01516_ Sensor Array destroyed. 01516_ Atomic Centrifuge disabled. 01516_ S-10 Pest destroyed. 01518_ Atomic Centrifuge disabled. 01520_ S-10 Pest destroyed. 01520_ K-01 Serf destroyed. 01522_ Destroyed Welding Torch. 01523_ U-05 Engineer builds a Door. 01524_ U-05 Engineer lays Concrete. 01524_ U-05 Engineer destroyed. 01525_ Mining Laser destroyed. 01527_ G-34 Mercenary suffers critical hit (Burn). 01532_ Med. Laser destroyed. 01533_ Lgt. Ion Engine destroyed. Map ----- +----------------------------------------------------+ | ???????????????????????????????????????? | | ???????????????????????????????????????? | | ???????????????????????????????????????? | | ???????????????????????????????????????? | | ???????????????????????????????????????? | | ???????????????????????????????????????? | | ???????????????????????????????????????? | | ???????????????????????????????????????? | | ???????????????????????????????????????? | | ???????????????????????????????? ??????? | | ?????????????????????????????? ????? ??? | | ????????????????????# ? ???????"???? | | ????????????????????#[] ??????? ???????? | | ????????????????????#]] ? ?????????????? | | ????????????????????#s ???? ??????????? | | ????????????????????# ? ???????#??#??? | | ?????????????? ?????# ?#??##??##?????# | | ???????????????###+## #########?#????? | | ??????????????## s # #??????# | | ???????????????# ss# T [ #??????? | | ???????????????#[ + #?##???? | | ??????????? ??## = #####?????# | | ??????????????# *% g %= ##??????# | | ?????????? ???# g #???#??## | | ??????????????# #??#????? | | ?????????? ????# @ """ #???#??## | | ?????????# ##### " # """ #?#???#?? | | ???????#?# # """ ###?????? | | ?????????# ##########??#?# | | ?????????# ! ?#???## ##?##?? | | ?????????# ###########????? | | ?????????############ # ##????? | | ??????????????????#?# # """ ###???? | | ????????????????????# # """ #??#??# | | ?????????????????#??# # """ ###?#?? | | ???????????????#??#?# + ##????? | | ?????????????????#??# # """ #???##? | | ???????????????????## # """ #???#?? | | ???????????????#????##### """ #?#???? | | ???????????????????#????# ###?#?# | | ???????????????????????###########??###? | | ????????????????????????#?#????????????? | | ?????????????#???????##????????????#??#? | | ?????????????????????#???#??#???????#?## | | ??????????????????????????###?#????????? | | ?????????????????????#?????????????????? | | | | | | | | | +----------------------------------------------------+ Best States ------------- Heat Dissipation 28 Energy Generation 10 Energy Capacity 250 Matter Stores 300 Matter Capacity 300 Sight Range 16 Robot Scan Range 14 Terrain Scan Range 16 Terrain Scan Density 10 Evasion (%) 44 Item Schematics ----------------- None Robot Schematics ------------------ None Fabricated ------------ Nothing Alien Tech Used ----------------- None Achievements -------------- None Challenges ------------ None Game ------ Seed FieldPhasingNanovents Manual? 0 Play Time 00:16:02 Cumulative 27.2 hours Start 2022.05.09 @ 04:43:44 End 2022.05.09 @ 04:56:50 Sessions 1 Manual Loads 0 Difficulty Rogue Special Mode None Game No. 52 Rogue 52 Adventurer 0 Explorer 0 Win Type - Total 0 Types 0/0/0/0/0/0/0/0/0 Lore% 23 Gallery% 30 Achievement% 24 Wizard Run 0 Options --------- ASCII 0 Keyboard 0 Movement Numpad Keybinds 0 Fullscreen 2 Font 18/SmallcapsGlow Map View 76x50 Tactical HUD 1 Map Filters NONE Filters NONE Steam 1 RUN: 41564a38-318a-4fb2-a567-eebc82bf21a1